bitfinex/quotes_ETHUSD_20240922
["timestamp","ask_amount","ask_price","bid_price","bid_amount"]
[1726969393061,2.43562073,2613.4,2613.0,1.61113849]
[1726969393293,2.43562073,2613.4,2613.0,1.85505343]
[1726969398302,2.43562073,2613.4,2613.0,0.24391494]
[1726969398507,2.43562073,2613.4,2612.8,0.8280109]
[1726969398706,2.43562073,2613.4,2613.2,1.61113849]
[1726969404476,2.43562073,2613.4,2612.9,4.61113849]
[1726969404675,2.43562073,2613.4,2612.9,3.0]
[1726969404919,2.43562073,2613.4,2612.8,1.42510329]
[1726969405122,2.43562073,2613.4,2612.8,1.42588556]
[1726969405272,2.43562073,2613.4,2612.9,3.0]
[1726969407394,2.43562073,2613.4,2613.0,1.61113849]
[1726969408725,2.42875552,2613.4,2613.0,1.61113849]
[1726969415433,2.42875552,2613.4,2612.9,0.59787466]
[1726969418436,2.42875552,2613.4,2612.8,0.8280109]
[1726969418655,2.42875552,2613.4,2612.9,0.59811773]
[1726969418805,2.42875552,2613.4,2612.9,3.59811773]
[1726969424823,2.42875552,2613.4,2612.8,2.43914939]
[1726969425033,2.42875552,2613.4,2612.9,3.59811544]
[1726969427108,2.42875552,2613.4,2612.9,0.59811544]
[1726969428547,2.42875552,2613.4,2612.7,3.0]
[1726969428749,2.42875552,2613.4,2612.9,0.59813257]
[1726969430374,2.42875552,2613.4,2612.9,0.59813613]
[1726969431679,2.42875552,2613.4,2612.9,0.59813757]
[1726969435164,2.42875552,2613.4,2612.9,0.59816593]
[1726969436038,2.42875552,2613.4,2613.0,1.61113849]
[1726969437082,2.42875552,2613.4,2613.2,1.61113849]
[1726969439156,2.42875552,2613.4,2613.0,1.61113849]
[1726969439355,2.42875552,2613.4,2613.0,2.13206641]
[1726969439569,2.42875552,2613.4,2613.0,5.13206641]
[1726969440617,2.42875552,2613.4,2612.9,1.19628235]
[1726969440797,2.4486,2613.2,2612.9,0.5981407]
[1726969442276,2.4486,2613.2,2612.7,1.61113849]
[1726969443700,2.4486,2613.2,2612.5,3.0]
[1726969443914,2.4486,2613.2,2612.5,0.88779484]
[1726969444204,2.4486,2613.2,2612.3,3.0]
[1726969444424,2.4486,2613.2,2612.5,1.61113849]
[1726969448153,2.4486,2613.2,2612.7,1.61113849]
[1726969449107,2.4486,2613.2,2612.3,3.44443573]
[1726969449108,2.4486,2613.2,2612.5,1.61113849]
[1726969450367,2.38958218,2613.1,2612.0,0.59739852]
[1726969450571,2.38958218,2613.1,2611.9,5.280109]
[1726969450572,2.8439,2613.0,2611.9,5.280109]
[1726969450796,2.2939,2612.8,2612.1,1.61113849]
[1726969451102,2.2939,2612.8,2611.9,5.280109]
[1726969451319,2.2939,2612.8,2612.1,1.61113849]
[1726969451479,2.2939,2612.7,2612.0,0.5280109]
[1726969451808,2.2939,2612.5,2612.0,3.5280109]
[1726969453415,0.095702,2612.4,2612.0,5.13914939]
[1726969453614,2.2939,2612.3,2612.0,2.13914939]
[1726969453780,2.2939,2612.3,2612.0,1.61113849]
[1726969459683,2.2939,2612.3,2611.8,1.61113849]
[1726969461139,2.38961179,2612.2,2611.2,5.280109]
[1726969461425,2.2939,2612.0,2611.4,1.61113849]
[1726969461626,2.38962142,2612.0,2611.4,1.61113849]
[1726969461931,2.38962359,2611.9,2611.4,1.61113849]
[1726969462317,2.38962359,2611.9,2611.3,1.61113849]
[1726969463002,2.38962359,2611.9,2611.3,4.61113849]
[1726969463320,2.38962359,2611.9,2611.3,3.0]
[1726969465606,2.38962359,2611.9,2611.0,3.0]
[1726969465803,2.38962359,2611.9,2611.2,1.61113849]
[1726969467707,2.2939,2611.9,2611.2,1.61113849]
[1726969467919,0.33469648,2612.1,2611.2,1.61113849]
[1726969467920,2.2939,2611.7,2611.2,1.61113849]
[1726969470668,2.2939,2611.7,2611.4,1.61113849]
[1726969473027,0.09573176,2612.2,2611.6,1.61113849]
[1726969473346,2.3846,2612.2,2611.5,0.44443573]
[1726969474624,7.43,2613.1,2611.5,0.44443573]
[1726969474828,2.3846,2613.0,2611.7,3.0]
[1726969475056,2.3846,2613.0,2611.8,0.8280109]
[1726969475261,0.09569299,2612.9,2612.2,1.61113849]
[1726969475424,2.3846,2612.8,2612.2,1.61113849]
[1726969477622,2.3846,2612.6,2612.0,4.61113849]
[1726969477817,0.09569307,2612.5,2612.0,4.61113849]
[1726969478022,2.3846,2612.4,2612.0,4.61113849]
[1726969480365,2.3846,2612.4,2612.0,1.61113849]
[1726969484571,2.3846,2612.4,2611.8,0.8280109]
[1726969484730,2.48031195,2612.3,2611.6,1.61113849]
[1726969484935,2.3846,2612.3,2611.6,1.61113849]
[1726969485352,2.3846,2612.1,2611.6,1.61113849]
[1726969486770,2.3846,2612.1,2611.4,3.0]
[1726969486771,2.3846,2611.9,2611.4,4.61113849]
[1726969487373,2.3846,2611.9,2611.5,0.98912475]
[1726969487519,2.3846,2611.9,2611.4,1.61113849]
[1726969491972,2.3846,2611.9,2611.2,1.61113849]
[1726969493638,2.3846,2611.9,2611.4,1.61113849]
[1726969498142,2.47622386,2611.8,2611.1,3.38127615]
[1726969498339,2.51382537,2612.3,2611.1,3.38127615]
[1726969498340,2.3805,2611.6,2611.1,3.0]
[1726969498579,2.3805,2611.6,2611.0,0.38127615]
[1726969498875,2.3805,2611.6,2611.0,1.99241464]
[1726969502077,2.3805,2611.6,2611.0,1.61113849]
[1726969502239,2.3805,2611.6,2611.0,1.9929046]
[1726969502448,2.3805,2611.6,2611.0,2.49219506]
[1726969503154,2.3805,2611.6,2611.0,1.9929046]
[1726969503363,2.2941,2611.4,2611.0,1.61113849]
[1726969503547,2.2941,2611.4,2611.1,0.03753522]
[1726969506486,2.2941,2611.4,2610.9,0.03753522]
[1726969508643,2.2941,2611.4,2611.0,1.61113849]
[1726969509559,2.2941,2611.4,2611.1,0.03753522]
[1726969510694,2.52351,2611.4,2611.1,0.03753522]
[1726969513256,2.2941,2611.4,2611.1,0.03753522]
[1726969527588,2.2941,2611.4,2610.9,0.03753522]
[1726969529623,7.43,2611.8,2611.2,1.61113849]
[1726969529788,2.4299,2611.7,2611.4,1.61113849]
[1726969530111,2.67289,2611.7,2611.1,0.38183729]
[1726969530316,2.4299,2611.7,2611.1,0.38183729]
[1726969530517,2.4299,2611.7,2611.2,0.03753522]
[1726969530691,2.4299,2611.7,2611.2,0.41937251]
[1726969531081,2.4299,2611.7,2611.2,2.030511]
[1726969532152,2.4299,2611.7,2611.2,1.64867371]
[1726969532420,2.4299,2611.7,2611.2,2.03075811]
[1726969534285,2.4299,2611.7,2611.3,0.3820844]
[1726969535482,2.4299,2611.7,2611.2,1.64867371]
[1726969535922,2.4299,2611.7,2611.3,0.38227221]
[1726969536426,2.4299,2611.7,2611.2,0.41980743]
[1726969538319,2.4299,2611.7,2611.3,0.38227221]
[1726969539110,2.4299,2611.7,2611.2,0.03753522]
[1726969539310,2.4299,2611.7,2611.3,0.38235111]
[1726969539711,2.4299,2611.7,2611.4,0.03753522]
[1726969541018,2.4299,2612.1,2611.6,0.38235111]
[1726969541933,2.4299,2612.1,2611.6,1.9934896]
[1726969542122,2.4299,2612.1,2611.6,0.38235111]
[1726969543093,2.4299,2612.1,2611.5,0.38235111]
[1726969544925,2.67289,2612.1,2611.5,0.38235111]
[1726969545226,2.67289,2612.1,2611.5,1.9934896]
[1726969548387,2.67289,2612.1,2611.5,1.61113849]
[1726969548829,2.67289,2612.1,2611.5,1.99316032]
[1726969549239,2.67289,2612.1,2611.5,1.61113849]
[1726969559329,2.3651,2611.9,2611.4,0.03753522]
[1726969559572,2.3651,2611.7,2611.4,0.03753522]
[1726969560557,2.3651,2611.7,2611.0,1.64867371]
[1726969561160,2.3651,2611.7,2611.0,2.03075169]
[1726969561381,2.3651,2611.7,2611.0,1.64867371]
[1726969561834,2.3651,2611.7,2611.0,2.03075169]
[1726969562066,2.3651,2611.7,2611.0,2.15174888]
[1726969562636,2.3651,2611.7,2611.0,5.15174888]
[1726969563672,2.3651,2611.7,2611.2,1.61113849]
[1726969564073,2.3107,2611.9,2611.2,0.4476265]
[1726969564443,2.3107,2611.9,2611.0,0.54061039]
[1726969565365,2.3107,2611.9,2611.4,1.61113849]
[1726969566293,2.3107,2611.8,2611.0,0.54061039]
[1726969567271,2.3107,2611.8,2611.1,1.61113849]
[1726969569695,2.3107,2611.8,2611.2,0.03753522]
[1726969570260,2.58523607,2611.7,2611.2,0.03753522]
[1726969572696,2.58523607,2611.7,2610.9,0.03753522]
[1726969572909,2.58523607,2611.7,2611.1,1.61113849]
[1726969573076,2.4895,2611.7,2611.1,1.61113849]
[1726969575665,2.4895,2611.7,2611.2,0.03753522]
[1726969578210,2.4895,2611.7,2611.3,1.61113849]
[1726969578411,7.43,2612.0,2611.2,0.03753522]
[1726969578715,9.9195,2612.0,2611.2,0.03753522]
[1726969579287,9.9195,2612.0,2611.5,1.61113849]
[1726969580904,2.4895,2612.0,2611.5,1.61113849]
[1726969591007,2.4229,2612.4,2611.9,1.61113849]
[1726969592751,2.4229,2612.7,2612.3,1.61113849]
[1726969593441,7.43,2613.1,2612.5,1.61113849]
[1726969593597,2.4229,2613.0,2612.5,1.61113849]
[1726969601365,2.4229,2613.0,2612.7,1.61113849]
[1726969602334,2.4229,2613.3,2612.7,1.61113849]
[1726969602746,2.4229,2613.3,2612.9,1.61113849]
[1726969602972,2.4610865,2613.5,2612.4,3.4476265]
[1726969603178,2.4610865,2613.5,2612.5,0.87277355]
[1726969604179,2.51856629,2613.4,2612.5,0.87277355]
[1726969604384,2.51856629,2613.4,2612.5,2.48391204]
[1726969604693,2.51856629,2613.4,2612.5,0.87277355]
[1726969604892,2.51856629,2613.4,2612.6,0.38727736]
[1726969605259,2.4229,2613.4,2612.6,0.38727736]
[1726969605651,2.4229,2613.4,2612.8,1.61113849]
[1726969606100,2.5185723,2613.4,2612.8,1.61113849]
[1726969607374,2.4229,2613.4,2612.8,1.61113849]
[1726969610964,0.09567007,2613.3,2612.8,1.61113849]
[1726969611162,2.4229,2613.4,2612.8,2.11098008]
[1726969612099,2.4229,2613.4,2613.0,1.61113849]
[1726969612294,0.0381865,2613.5,2613.0,1.61113849]
[1726969612892,0.0381865,2613.5,2613.2,1.61113849]
[1726969614092,0.0381865,2613.5,2613.0,1.61113849]
[1726969615076,2.3458,2613.4,2612.8,3.49984159]
[1726969615275,0.09567424,2613.3,2612.8,3.0]
[1726969616399,0.09567424,2613.3,2612.6,1.99841585]
[1726969616608,2.3458,2613.2,2612.5,3.0]
[1726969616777,2.3458,2613.2,2612.5,4.61113849]
[1726969618315,0.09568162,2613.1,2612.5,4.61113849]
[1726969618687,2.3458,2613.2,2612.5,4.61113849]
[1726969619323,0.09568163,2613.1,2612.5,4.61113849]
[1726969619483,2.44148163,2613.2,2612.5,4.61113849]
[1726969619685,2.3458,2613.2,2612.5,4.61113849]
[1726969620093,2.3458,2613.4,2612.5,4.61113849]
[1726969620420,0.55,2613.0,2612.1,0.55611521]
[1726969620731,2.44149479,2612.9,2612.2,1.61113849]
[1726969621521,2.3458,2612.9,2612.2,1.61113849]
[1726969622285,2.3458,2612.9,2612.0,3.0]
[1726969622286,2.3458,2612.9,2612.6,1.61113849]
[1726969622501,0.55,2613.2,2612.3,0.4476265]
[1726969622502,2.25,2613.2,2612.3,0.4476265]
[1726969622686,2.25,2613.2,2612.8,1.61113849]
[1726969623196,0.09567687,2613.1,2612.1,0.4476265]
[1726969623379,2.25,2613.2,2612.1,0.4476265]
[1726969623380,2.25,2613.2,2612.7,1.61113849]
[1726969624985,0.09567695,2613.1,2612.7,1.61113849]
[1726969625189,2.25,2613.2,2612.7,1.61113849]
[1726969625995,0.09567686,2613.1,2612.7,1.61113849]
[1726969626501,0.09568011,2613.1,2612.7,1.61113849]
[1726969626905,2.25,2613.2,2612.7,1.61113849]
[1726969629640,0.09567689,2613.1,2612.7,1.61113849]
[1726969629791,0.55,2613.4,2612.7,1.61113849]
[1726969629792,0.09567929,2613.3,2612.7,1.61113849]
[1726969631291,0.55,2613.2,2612.4,3.0]
[1726969631501,0.55,2613.0,2612.4,3.0]
[1726969634228,0.55,2613.2,2612.4,3.0]
[1726969634558,2.71503865,2613.4,2611.8,3.55678147]
[1726969634559,0.55,2612.8,2611.8,3.55678147]
[1726969634717,0.09569797,2613.1,2611.8,3.55678147]
[1726969634718,7.98,2613.0,2611.9,0.88368905]
[1726969634899,0.09570232,2612.9,2611.9,0.88368905]
[1726969635308,7.98,2613.0,2611.9,0.88368905]
[1726969635810,7.98,2613.0,2612.3,1.61113849]
[1726969636004,0.09570161,2612.9,2612.3,1.61113849]
[1726969636201,0.55,2612.8,2612.3,1.61113849]
[1726969636404,0.09570174,2612.7,2611.8,3.0]
[1726969636855,0.55,2612.8,2611.8,3.0]
[1726969637142,0.55,2612.8,2612.3,1.61113849]
[1726969640149,0.80757016,2612.9,2612.3,1.61113849]
[1726969640150,0.09570156,2612.7,2612.3,1.61113849]
[1726969640443,0.64570155,2613.0,2612.3,1.61113849]
[1726969640651,0.64570155,2613.0,2611.8,3.0]
[1726969640946,0.55,2612.9,2611.9,0.87806183]
[1726969642655,0.55,2612.7,2611.9,0.87806183]
[1726969642837,0.55,2612.7,2612.1,1.61113849]
[1726969644239,0.55,2612.9,2612.1,1.61113849]
[1726969646024,0.09570195,2612.8,2612.1,1.61113849]
[1726969646245,0.55,2612.9,2612.1,1.61113849]
[1726969646651,0.55,2612.9,2611.9,0.87806183]
[1726969646857,0.55,2613.1,2612.0,0.38780618]
[1726969647432,0.55,2612.9,2612.2,1.61113849]
[1726969650173,1.61113849,2612.6,2611.4,0.03753522]
[1726969650487,1.9133,2613.3,2611.4,0.03753522]
[1726969650488,0.64571481,2612.5,2611.4,0.03753522]
[1726969650631,0.55,2612.0,2611.4,0.03753522]
[1726969650831,0.55,2611.8,2611.2,0.03753522]
[1726969651078,0.09573874,2611.7,2611.2,0.03753522]
[1726969652863,0.55,2611.6,2611.2,0.03753522]
[1726969653058,0.09574542,2611.5,2611.2,0.03753522]
[1726969653783,0.09574542,2611.5,2611.0,0.03753522]
[1726969653937,0.09574383,2611.7,2611.0,0.03753522]
[1726969654135,0.55,2611.6,2611.0,0.03753522]
[1726969654477,0.55,2611.4,2611.0,0.03753522]
[1726969654680,0.55,2611.2,2611.0,0.03753522]
[1726969654982,0.64576054,2611.1,2611.0,0.03753522]
[1726969655983,1.9146,2611.5,2611.0,0.03753522]
[1726969655984,0.55,2611.3,2611.0,0.03753522]
[1726969656154,0.09576046,2611.2,2611.0,0.03753522]
[1726969656369,0.55,2611.1,2611.0,0.03753522]
[1726969656751,0.55,2611.1,2610.5,0.03753522]
[1726969657155,0.55,2610.9,2610.5,0.03753522]
[1726969657665,0.55,2610.9,2610.6,0.06269168]
[1726969658701,9.3446,2611.5,2610.6,0.06269168]
[1726969658702,0.55,2611.4,2610.6,3.06269168]
[1726969658887,0.55,2611.4,2610.6,3.7261669]
[1726969659808,0.55,2611.4,2610.7,0.03753522]
[1726969660165,0.64576006,2611.4,2610.7,0.03753522]
[1726969662577,0.55,2611.2,2610.7,0.03753522]
[1726969662779,0.55,2611.0,2610.5,0.03753522]
[1726969663097,0.55,2610.8,2610.6,0.07164763]
[1726969665008,3.0421,2610.7,2610.6,0.07164763]
[1726969665784,3.00456478,2610.7,2610.6,0.07164763]
[1726969665985,0.55,2610.6,2610.4,0.0381865]
[1726969666206,0.55,2610.6,2610.5,0.06288601]
[1726969667428,0.64577815,2610.6,2610.5,0.06288601]
[1726969667611,0.55,2610.6,2610.5,0.06288601]
[1726969668341,0.55,2610.6,2610.5,1.97822601]
[1726969669402,2.45456478,2610.7,2610.6,1.91526]
[1726969669597,2.45456478,2610.7,2610.6,1.98690763]
[1726969669598,3.00456478,2610.7,2610.6,1.98690763]
[1726969672102,3.00456478,2610.7,2610.6,0.07164763]
[1726969672303,0.55,2610.6,2610.4,1.9535265]
[1726969674257,0.55,2610.6,2610.5,1.91534]
[1726969674814,0.55,2610.6,2610.4,0.0381865]
[1726969674815,0.64577329,2610.6,2610.4,0.0381865]
[1726969675023,2.9276,2610.5,2610.4,0.0381865]
[1726969676443,2.9276,2610.5,2610.4,0.1015548]
[1726969680168,2.9276,2610.5,2610.4,2.0169648]
[1726969680371,0.55,2610.6,2610.4,2.0169648]
[1726969680573,2.3776,2610.7,2610.6,1.91526]
[1726969680872,2.3776,2610.7,2610.6,0.06297962]
[1726969681175,2.3776,2610.7,2610.4,0.0381865]
[1726969681370,2.3776,2610.7,2610.6,0.06297962]
[1726969681529,2.61536,2610.7,2610.5,0.06317395]
[1726969681734,2.61536,2610.7,2610.6,0.06297962]
[1726969682277,0.55,2610.6,2610.4,0.0381865]
[1726969683171,0.55,2610.6,2610.5,1.91534]
[1726969686240,0.55,2610.6,2610.4,1.9535965]
[1726969690886,2.9666,2610.5,2610.4,1.9535965]
[1726969691381,2.9666,2610.5,2610.4,2.01697755]
[1726969697486,2.9666,2610.5,2610.4,0.10156755]
[1726969697784,3.26326,2610.5,2610.4,0.10156755]
[1726969698547,3.35904318,2610.5,2610.4,0.10156755]
[1726969699657,3.26326,2610.5,2610.4,0.10156755]
[1726969700760,2.9666,2610.5,2610.4,0.10156755]
[1726969706923,2.9666,2610.5,2610.4,2.01697755]
[1726969712314,2.9666,2610.5,2610.4,0.10156755]
[1726969713144,0.55,2610.5,2610.4,2.01697755]
[1726969713441,0.09577667,2611.1,2610.6,1.9152]
[1726969713594,3.77614957,2611.1,2610.6,1.9152]
[1726969713797,3.77614957,2611.1,2610.8,1.91508]
[1726969715338,0.55,2611.0,2610.8,1.91508]
[1726969718234,2.4861,2610.9,2610.8,1.91508]
[1726969718397,3.34928767,2610.9,2610.8,1.91508]
[1726969730953,0.55,2610.8,2610.6,1.9152]
[1726969731486,0.55,2610.8,2610.7,0.06266673]
[1726969733392,0.6457718,2610.8,2610.7,0.06266673]
[1726969736394,0.55,2610.8,2610.7,0.06266673]
[1726969738003,0.55,2610.8,2610.4,0.0381865]
[1726969738199,0.55,2610.8,2610.7,0.06266673]
[1726969738374,0.55,2610.8,2610.4,0.0381865]
[1726969740266,0.55,2610.6,2610.4,0.0381865]
[1726969740778,0.55,2610.6,2610.5,0.06305539]
[1726969741165,0.55,2610.6,2610.4,0.0381865]
[1726969741561,0.09577508,2610.7,2610.4,0.0381865]
[1726969741768,0.55,2611.0,2610.5,1.61486841]
[1726969741991,0.64576581,2611.0,2610.5,1.61486841]
[1726969742386,0.94907239,2611.0,2610.4,0.0381865]
[1726969742591,0.55,2610.8,2610.4,0.0381865]
[1726969742801,0.64577416,2610.8,2610.4,0.0381865]
[1726969743115,0.55,2610.8,2610.4,0.0381865]
[1726969743282,0.64577404,2610.8,2610.4,0.0381865]
[1726969743603,9.8173,2611.3,2610.4,0.0381865]
[1726969743821,1.13750591,2611.2,2610.4,0.0381865]
[1726969744099,0.09577404,2611.2,2610.4,0.0381865]
[1726969744806,0.09577404,2611.2,2610.6,1.61486841]
[1726969745514,0.55,2611.1,2610.6,1.61486841]
[1726969745689,2.48305872,2611.0,2610.4,0.0381865]
[1726969745892,0.55,2610.9,2610.4,0.0381865]
[1726969746411,0.55,2611.1,2610.5,0.06306808]
[1726969746582,0.55,2610.9,2610.5,0.06306808]
[1726969746908,0.55,2610.9,2610.5,1.67793649]
[1726969747398,0.55,2611.1,2610.5,1.67793649]
[1726969749898,0.55,2611.2,2610.9,1.61486841]
[1726969750114,2.3544,2611.6,2610.5,0.06306808]
[1726969750324,7.43,2611.7,2611.3,1.61486841]
[1726969750519,0.0957344,2611.8,2611.3,1.61486841]
[1726969752352,0.55,2611.7,2611.3,1.61486841]
[1726969752819,0.5,2611.7,2611.3,1.61486841]
[1726969753787,2.3544,2611.9,2611.3,1.61486841]
[1726969753992,2.95437559,2612.1,2611.5,1.61486841]
[1726969754219,3.48856982,2612.1,2611.5,1.61486841]
[1726969754423,2.45012398,2612.1,2611.5,1.61486841]
[1726969755920,0.55,2612.0,2611.5,1.61486841]
[1726969756123,0.64572355,2612.1,2611.5,1.61486841]
[1726969757828,0.55,2612.1,2611.7,1.61486841]
[1726969758003,0.55,2612.2,2611.7,1.61486841]
[1726969758207,0.64571941,2612.2,2611.7,1.61486841]
[1726969758522,0.64571941,2612.2,2611.5,1.61486841]
[1726969762800,0.55,2612.0,2611.0,3.0]
[1726969763003,2.3544,2611.7,2611.0,3.0]
[1726969763198,2.45013412,2611.7,2610.9,5.280109]
[1726969763398,0.55,2611.6,2610.9,5.280109]
[1726969763921,0.55,2611.6,2610.5,5.280109]
[1726969764198,0.55,2611.6,2611.2,1.61486841]
[1726969765236,0.55,2611.6,2611.4,1.61486841]
[1726969766627,0.55,2611.6,2610.6,3.0]
[1726969766824,0.64573802,2611.6,2611.0,1.61486841]
[1726969767028,0.09573802,2611.5,2611.0,1.61486841]
[1726969767339,0.55,2611.6,2610.7,0.8280109]
[1726969769564,0.09573804,2611.5,2610.7,0.8280109]
[1726969769768,0.09573804,2611.5,2611.1,1.61486841]
[1726969770468,0.09573805,2611.5,2611.1,1.61486841]
[1726969771329,2.2522,2611.3,2610.7,0.8280109]
[1726969771582,0.55,2611.2,2610.8,1.61486841]
[1726969772369,0.55,2611.2,2610.7,0.8280109]
[1726969772575,0.55,2611.2,2611.0,1.61486841]
[1726969772874,0.09575382,2611.8,2611.0,1.61486841]
[1726969772875,0.55,2611.5,2611.0,1.61486841]
[1726969773058,0.64574133,2611.5,2611.0,1.61486841]
[1726969774870,0.55,2611.5,2611.0,1.61486841]
[1726969775382,0.09574132,2611.4,2611.0,1.61486841]
[1726969777249,0.55,2611.5,2611.0,1.61486841]
[1726969777445,0.6457413,2611.5,2611.0,1.61486841]
[1726969777860,0.55,2611.5,2611.0,1.61486841]
[1726969778696,0.09574129,2611.4,2611.0,1.61486841]
[1726969781648,0.55,2611.5,2611.2,1.61486841]
[1726969789800,0.09574115,2611.4,2611.0,1.61486841]
[1726969790363,3.0103,2611.3,2610.7,0.8280109]
[1726969790673,3.0103,2611.3,2610.8,0.38280109]
[1726969790873,3.0103,2611.3,2610.7,2.44287931]
[1726969791603,3.0103,2611.3,2610.9,1.61486841]
[1726969795807,3.0103,2611.3,2610.7,0.8280109]
[1726969795992,3.0103,2611.3,2610.8,1.61486841]
[1726969801357,0.55,2611.1,2610.8,1.61486841]
[1726969801622,3.0103,2611.3,2610.8,1.61486841]
[1726969802401,3.0103,2611.3,2611.0,1.61486841]
[1726969804402,3.0103,2611.1,2610.6,3.0]
[1726969804609,2.4603,2610.8,2610.6,0.07165728]
[1726969804839,2.4603,2610.8,2610.4,0.0381865]
[1726969805189,2.4603,2610.6,2610.5,0.07187937]
[1726969805324,3.0103,2610.6,2610.5,0.07187937]
[1726969806248,3.0103,2610.6,2610.4,0.0381865]
[1726969807294,3.0103,2610.6,2610.5,0.06289445]
[1726969807490,3.0103,2610.6,2610.4,0.0381865]
[1726969807690,3.0103,2610.6,2610.5,0.06289445]
[1726969807914,3.0103,2610.6,2610.5,1.97823445]
[1726969808510,3.0103,2610.6,2610.5,0.06289445]
[1726969812536,3.10608049,2610.6,2610.5,0.06289445]
[1726969813039,3.1060792,2610.6,2610.5,0.06289445]
[1726969813752,3.0103,2610.6,2610.5,0.06289445]
[1726969814719,3.31133,2610.6,2610.5,0.06289445]
[1726969815098,3.91141113,2610.6,2610.5,0.06289445]
[1726969819339,3.61038113,2610.6,2610.5,1.97823445]
[1726969819641,3.0103,2610.6,2610.5,0.06289445]
[1726969821118,1.61486841,2611.3,2610.5,0.06289445]
[1726969821119,2.2992,2610.8,2610.7,1.91519]
[1726969821342,4.21389,2611.4,2610.9,1.915]
[1726969821519,2.2992,2611.2,2610.9,1.915]
[1726969821704,0.09575911,2611.1,2610.9,1.915]
[1726969822606,0.55,2611.0,2610.9,1.915]
[1726969823246,2.2992,2610.9,2610.7,1.91516]
[1726969823743,2.8492,2610.9,2610.8,0.05582469]
[1726969824184,2.8492,2610.9,2610.7,1.91516]
[1726969824683,2.8492,2610.9,2610.8,0.05582469]
[1726969825184,2.8492,2610.9,2610.7,1.91516]
[1726969825360,2.8492,2610.9,2610.8,0.06280278]
[1726969825744,0.55,2610.8,2610.4,0.38692192]
[1726969825943,2.8492,2610.6,2610.4,0.0381865]
[1726969826440,2.8492,2610.6,2610.5,0.05634288]
[1726969827586,2.8492,2610.6,2610.5,1.97162288]
[1726969828299,0.55,2610.7,2610.6,1.91519]
[1726969828656,0.55,2610.7,2610.6,1.97136014]
[1726969832206,2.3973,2611.0,2610.8,1.91507]
[1726969832518,8.45142446,2611.3,2610.8,1.97080186]
[1726969832519,2.3973,2611.2,2610.8,1.97080186]
[1726969832663,2.49305912,2611.2,2610.8,1.97080186]
[1726969832863,3.58750748,2611.2,2610.8,1.91506]
[1726969833696,0.55,2611.1,2610.8,1.91506]
[1726969833902,2.9473,2610.9,2610.8,1.91506]
[1726969836069,0.55,2610.5,2610.4,0.0381865]
[1726969836294,2.3973,2610.8,2610.4,0.08890147]
[1726969836469,0.55,2610.7,2610.4,0.0381865]
[1726969836869,0.55,2610.7,2610.6,1.91521]
[1726969837102,3.24203,2610.7,2610.6,0.05040741]
[1726969837518,0.55,2610.5,2610.4,0.0381865]
[1726969837732,0.64578426,2610.5,2610.4,0.0381865]
[1726969838011,0.64578426,2610.5,2609.7,1.91592]
[1726969838012,0.55,2610.3,2609.7,1.91592]
[1726969838170,2.3973,2610.0,2609.7,1.91592]
[1726969838369,0.64579933,2609.9,2609.7,1.91592]
[1726969838909,0.64579933,2609.9,2609.6,0.0381865]
[1726969839100,0.55,2609.7,2609.6,0.0381865]
[1726969839302,0.64581521,2609.7,2609.6,0.0381865]
[1726969839609,1.14170973,2609.7,2609.6,0.0381865]
[1726969852023,3.05762973,2609.7,2609.6,0.0381865]
[1726969853099,5.34742973,2609.7,2609.6,0.0381865]
[1726969856938,5.34742973,2609.7,2609.0,0.01]
[1726969856939,2.8398,2609.3,2609.0,0.01]
[1726969857114,2.8398,2609.1,2609.0,0.01]
[1726969857855,2.8398,2609.1,2608.1,1.65305491]
[1726969857856,0.55,2608.7,2608.1,0.0381865]
[1726969857990,2.2898,2608.8,2608.3,1.91689]
[1726969857991,0.55,2608.5,2608.3,1.91689]
[1726969858193,2.2898,2608.8,2608.3,1.91689]
[1726969858505,0.55,2608.7,2608.5,1.9168]
[1726969859324,0.55,2608.7,2608.3,1.91689]
[1726969859631,0.55,2608.7,2608.5,1.9168]
[1726969859929,0.55,2608.7,2608.5,3.83352]
[1726969860437,0.55,2608.7,2608.6,1.91673]
[1726969860641,1.91618,2609.4,2609.1,1.91636]
[1726969860642,2.2898,2609.4,2609.1,1.91636]
[1726969860791,2.38563128,2609.4,2609.1,1.91636]
[1726969860993,2.2898,2609.4,2609.1,1.91636]
[1726969861193,2.2898,2609.9,2609.3,1.91622]
[1726969861406,4.3014464,2609.9,2609.2,1.91629]
[1726969861729,2.53757764,2609.8,2609.2,1.91629]
[1726969861890,0.09581892,2609.7,2609.2,1.91629]
[1726969862733,0.55,2609.4,2609.0,1.91639]
[1726969862938,0.55,2609.2,2609.0,1.91639]
[1726969863107,0.55,2609.2,2608.8,1.91655]
[1726969863434,0.55,2609.2,2608.9,1.91647]
[1726969864428,0.55,2609.2,2609.0,1.91643]
[1726969865119,0.55,2609.4,2609.1,1.91636]
[1726969865332,0.55,2609.4,2609.3,1.91621]
[1726969865719,0.55,2609.6,2609.3,1.91621]
[1726969865920,0.90573338,2609.6,2609.3,1.91621]
[1726969866646,0.90573338,2609.6,2609.2,1.91629]
[1726969866846,0.55,2609.4,2609.2,1.91629]
[1726969867227,0.55,2609.4,2609.3,1.91622]
[1726969867427,0.55,2609.5,2609.3,3.83239]
[1726969867756,0.55,2609.5,2609.3,1.91617]
[1726969871463,0.55,2609.5,2609.1,1.91633]
[1726969871464,0.55,2609.5,2609.1,1.91632]
[1726969871665,0.55,2609.3,2608.9,1.91647]
[1726969871830,0.55,2609.1,2608.3,1.91692]
[1726969872024,0.55,2608.9,2608.5,1.91675]
[1726969872363,0.64584141,2608.9,2608.3,1.9169]
[1726969872567,0.55,2608.9,2608.6,1.91673]
[1726969872720,0.55,2608.9,2608.7,1.91664]
[1726969874037,0.55,2608.9,2608.6,3.83341]
[1726969874264,0.55,2608.9,2608.6,1.91668]
[1726969874464,0.55,2608.9,2608.6,3.83337]
[1726969874678,0.55,2608.9,2608.7,1.91665]
[1726969874993,0.55,2609.1,2608.8,1.91654]
[1726969875976,0.55,2609.1,2608.8,1.91653]
[1726969876160,2.3241,2609.5,2609.2,1.91627]